Cogmind - Beta 14 @@@ ROGUE MODE // 2024.11.19 @ 13:12:35 Player: Fangrelle Result: Destroyed by S-10 Pest with Light Assault Rifle Performance ------------- Evolutions (0) 0 Regions Visited (3) 600 Robots Destroyed (43) 215 Value Destroyed (1079) 1079 Prototype IDs (1) 20 Alien Tech Used (0) 0 Bonus (0) 0 TOTAL SCORE: 1914 Bonus ------- None Cogmind --------- Core Integrity 0/250 Matter 293/300 Energy 182/200 System Corruption 0% Temperature Cool (5) Movement Flying (247) Ox3 Location -10/Subcaves Parts ------- > --- POWER (1) -------- Subdweller Power Source > --- PROPULSION (2) --- Improved Flight Unit Improved Flight Unit > --- UTILITY (2) ------ Large Storage Unit > --- WEAPON (2) ------- Spread Laser Spread Laser > --- INVENTORY (15) --- Faulty Improved Flight Unit Improved Flight Unit Improved Heat Sink Subdweller Optics Shield Generator Shield Generator Spread Laser Light Cannon Light Cannon Grenade Launcher Rocket Launcher Mining Laser Peak State ------------ > --- POWER ------------ Light Nuclear Core > --- PROPULSION ------- Improved Flight Unit Improved Flight Unit > --- UTILITY ---------- Large Storage Unit Medium Armor Plating > --- WEAPON ----------- Spread Laser Spread Laser > --- INVENTORY -------- Subdweller Power Source Improved Flight Unit Improved Flight Unit Improved Heat Sink Shield Generator Shield Generator Spread Laser Light Cannon Light Cannon Grenade Launcher Rocket Launcher Mining Laser [Rating: 18] Favorites ----------- Power Ion Engine Engine Ion Engine Power Core Light Nuclear Core Propulsion Light Treads Treads Light Treads Leg Aluminum Leg Flight Unit Improved Flight Unit Utility Medium Armor Plating Device Improved Heat Sink Storage Large Storage Unit Protection Medium Armor Plating Weapon Spread Laser Energy Gun Spread Laser Special Weapon Mining Laser Build | -11 -10 -10 -10 ------- Run | Yrd Mat Min Sub Slots Evolved . | . . . . Power . | . . . . Propulsion . | . . . . Utility . | . . . . Weapon . | . . . . Parts Attached 25 | . 14 5 6 Power 4 | . 2 1 1 Engine 3 | . 2 . 1 Core 1 | . . 1 . Reactor . | . . . . Propulsion 7 | . 5 . 2 Treads 4 | . 4 . . Leg . | . . . . Wheel . | . . . . Hover . | . . . . Flight 3 | . 1 . 2 Utility 8 | . 4 3 1 Device 1 | . . 1 . Storage 2 | . 2 . . Processor . | . . . . Hackware . | . . . . Protection 5 | . 2 2 1 Artifact . | . . . . Weapon 6 | . 3 1 2 Energy Gun 5 | . 3 1 1 Energy Cannon . | . . . . Ballistic Gun . | . . . . Ballistic Cannon . | . . . . Launcher . | . . . . Special Weapon 1 | . . . 1 Impact Weapon . | . . . . Slashing Weapon . | . . . . Piercing Weapon . | . . . . Special Melee Weapon . | . . . . Unidentified Prototypes 1 | . 1 . . Parts Lost 8 | . . 3 5 Power 2 | . . 1 1 Propulsion 2 | . . . 2 Utility 3 | . . 1 2 Weapon 1 | . . 1 . Highest Loss Streak 3 | . . 2 3 To Critical Strikes . | . . . . Average Slot Usage (%) 96 | . 99 96 87 Engine 9 | . 14 4 . Core 3 | . . 5 13 Treads 25 | . 28 28 10 Flight 1 | . . . 8 Storage 14 | . 14 14 14 Protection 13 | . 13 13 10 Energy Gun 27 | . 27 27 26 Peak Build Rating 18 | . 14 15 18 Average Rating 12 | . 12 12 14 On Entrance 9 | 6 6 13 14 Naked Turns . | . . . . Heaviest Build 38 | 13 38 38 38 Greatest Support 40 | 20 40 40 40 Greatest Overweight (x) 12 | . . . 12 Average Overweight (x) . | . . . 2 Largest Inventory Capacity 15 | . 15 15 15 Average Capacity 14 | . 14 15 15 Most Carried 15 | . 15 15 14 Average Carried 12 | . 12 14 13 Final Capacity 15 | 8 15 15 15 Final Carried 15 | 6 15 14 12 Class Distribution -------------------- 100% | Mutant Dominant Class ---------------- Mutant | -10/Materials Mutant | -10/Mines Mutant | -10/Subcaves Resources | -11 -10 -10 -10 ----------- Run | Yrd Mat Min Sub Matter Collected 565 | 200 262 55 48 Remotely . | . . . . Salvage Created 972 | . 650 189 133 Parts 63 | . 40 14 9 Haulers Intercepted 2 | . 2 . . Recyclers Shooed 5 | . 5 . . Parts Field Recycled . | . . . . Retrieved Matter . | . . . . Parts Self-Destructed 5 | . . . 5 Prevented . | . . . . Kills | -11 -10 -10 -10 ------- Run | Yrd Mat Min Sub Combat Hostiles Destroyed 34 | . 16 10 8 Guns 34 | . 16 10 8 Classes Destroyed 9 | . 6 1 2 Worker 2 | . 2 . . Hauler 2 | . 2 . . Recycler 1 | . 1 . . Mechanic 1 | . 1 . . Watcher 3 | . 3 . . Swarmer 11 | . . 6 5 Grunt 20 | . 16 4 . Sentry 1 | . . . 1 Subdweller 2 | . . . 2 Best Kill Streak 3 | . 3 3 3 Combat Bots Only 3 | . 3 3 3 Max Kills in Single Turn 2 | . 2 1 1 Gunslinging . | . . . . Exploded . | . . . . Melee . | . . . . Uniques/NPCs Destroyed . | . . . . Combat | -11 -10 -10 -10 -------- Run | Yrd Mat Min Sub Hostile Shots Fired 163 | . 57 54 52 Missed 37 | . 11 13 13 Damage Taken 1592 | . 594 521 477 Core 254 | . 85 60 109 Absorbed by Shields . | . . . . Regen/Repaired (Parts) 78 | . 78 . . Core Remaining (%) 100 | 100 . . . Volleys Fired 102 | . 58 25 19 Largest 2 | . 2 2 2 Hottest 130 | . 130 130 130 Shots Fired 175 | . 98 41 36 Gun 173 | . 98 41 34 Cannon . | . . . . Launcher . | . . . . Special 2 | . . . 2 Kinetic . | . . . . Thermal 175 | . 98 41 36 Explosive . | . . . . Electromagnetic . | . . . . Robot Hit Streak 10 | . 7 7 10 Robot Miss Streak 13 | . 7 13 7 Penetration Max . | . . . . Secondary Targets 2 | . 1 . 1 Max Gunslinging Chain 1 | . 1 . 1 Shots Hit Robots 156 | . 90 35 31 Core Hits 183 | . 115 35 33 Critical Kills . | . . . . Critical Parts Destroyed . | . . . . Critical Strikes 1 | . 1 . . Burn 1 | . 1 . . Melee Attacks . | . . . . Impact . | . . . . Slashing . | . . . . Piercing . | . . . . Sneak Attacks . | . . . . Combat Hostiles . | . . . . Follow-up Attacks . | . . . . Damage Inflicted 1952 | . 1213 369 370 Guns 1943 | . 1208 365 370 Cannons . | . . . . Explosions . | . . . . Melee . | . . . . Ramming 9 | . 5 4 . Kinetic . | . . . . Thermal 1943 | . 1208 365 370 Explosive . | . . . . Electromagnetic . | . . . . Impact . | . . . . Slashing . | . . . . Piercing . | . . . . Highest Corruption . | . . . . Average Corruption . | . . . . Corruption Purged . | . . . . Corruption Blocked . | . . . . Overload Shots . | . . . . Overflow Damage . | . . . . Projectiles . | . . . . Explosions . | . . . . Melee . | . . . . Knockbacks . | . . . . Impact . | . . . . Kinetic . | . . . . Secondary . | . . . . Self-Inflicted Damage . | . . . . Shots . | . . . . Rammed 2 | . 1 1 . Targets Rammed 3 | . 2 1 . Kicked . | . . . . Crushed 1 | . 1 . . Highest Temperature 486 | . 486 465 112 Average Temperature 159 | . 164 195 39 Received Heat Transfer 726 | . 342 261 123 Effects 13 | . 7 6 . Shutdowns 2 | . 2 . . Energy Bleed 3 | . 1 2 . Interference 5 | . 2 3 . Matter Decay 2 | . 2 . . Damage (minor) 1 | . . 1 . Siege Activations . | . . . . Robots Corrupted . | . . . . Combat Hostiles . | . . . . Parts Fried . | . . . . Impact Corruptions . | . . . . Robots Melted . | . . . . Combat Hostiles . | . . . . Parts Melted 6 | . 3 1 2 Heat Transferred 2511 | . 1586 445 480 Parts Sabotaged . | . . . . Parts Stolen . | . . . . Parts Stripped . | . . . . Power Chain Reactions . | . . . . Alert | -11 -10 -10 -10 ------- Run | Yrd Mat Min Sub Peak Influence 192 | . 159 192 . Initial 52 | . . 52 . Average 54 | . 54 53 . Maximum Alert Level . | . . . . Low Security (%) 100 | . 100 100 . Level 1 . | . . . . Level 2 . | . . . . Level 3 . | . . . . Level 4 . | . . . . Level 5 . | . . . . High Security . | . . . . Max Security . | . . . . Squads Dispatched 2 | . 2 . . Investigation 2 | . 2 . . Extermination . | . . . . Reinforcement . | . . . . Assault . | . . . . Garrison . | . . . . Intercept . | . . . . Searches Triggered . | . . . . Construction Impeded . | . . . . Haulers Reinforced . | . . . . Active Scanning Responses . | . . . . Cargo Convoy Interrupts . | . . . . Stealth | -11 -10 -10 -10 --------- Run | Yrd Mat Min Sub Distress Signals . | . . . . Communications Jammed . | . . . . Distress Signals . | . . . . Times Spotted 45 | . 24 10 11 Peak Tracking Total 4 | . 3 3 4 Tactical Retreats 4 | . 2 . 2 Traps | -11 -10 -10 -10 ------- Run | Yrd Mat Min Sub Traps Triggered 1 | . 1 . . Indirectly . | . . . . Trap Hack Attempts . | . . . . Triggered . | . . . . Disarmed . | . . . . Reprogrammed . | . . . . Reused . | . . . . Traps Extracted . | . . . . Installed . | . . . . Triggered . | . . . . Machines | -11 -10 -10 -10 ---------- Run | Yrd Mat Min Sub Machines Disabled . | . . . . Max in Single Turn . | . . . . Machines Repaired . | . . . . Machines Dismantled . | . . . . Machines Sabotaged . | . . . . Overloaded Fab Kills . | . . . . Hacking | -11 -10 -10 -10 --------- Run | Yrd Mat Min Sub Machines Accessed 8 | . 8 . . Terminals 5 | . 5 . . Fabricators . | . . . . Repair Stations 1 | . 1 . . Recycling Units 2 | . 2 . . Scanalyzers . | . . . . Garrison Access . | . . . . Total Hacks 29 | . 29 . . Successful 18 | . 18 . . Failed 11 | . 11 . . Catastrophic 1 | . 1 . . Database Lockouts . | . . . . Manual 23 | . 23 . . Terminals 21 | . 21 . . Fabricators . | . . . . Repair Stations 4 | . 4 . . Recycling Units 4 | . 4 . . Scanalyzers . | . . . . Garrison Access . | . . . . Terminal Hacks . | . . . . Fabricator Hacks . | . . . . Repair Station Hacks 2 | . 2 . . Scan Component 1 | . 1 . . Repair 1 | . 1 . . Recycling Unit Hacks 1 | . 1 . . Retrieve Components 1 | . 1 . . Scanalyzer . | . . . . Garrison Access Hacks . | . . . . Unauthorized Hacks 15 | . 15 . . Terminals 13 | . 13 . . Assimilate 4 | . 4 . . Botnet 5 | . 5 . . Operators 1 | . 1 . . Skim 3 | . 3 . . Fabricators . | . . . . Repair Stations . | . . . . Recycling Units 2 | . 2 . . Tunnel 2 | . 2 . . Scanalyzers . | . . . . Garrison Access . | . . . . Data Cores Recovered . | . . . . Used . | . . . . Hacking Detections 7 | . 7 . . Full Trace Events . | . . . . Feedback Events . | . . . . Feedback Blocked . | . . . . Robot Schematics Acquired . | . . . . Robots Built . | . . . . Authchips . | . . . . Time . | . . . . Total Robot Build Rating . | . . . . Part Schematics Acquired . | . . . . Parts Built . | . . . . Authchips . | . . . . Time . | . . . . Total Part Build Rating . | . . . . Parts Repaired 1 | . 1 . . Time 16 | . 16 . . Parts Recycled . | . . . . Recycled Matter . | . . . . Retrieved Matter . | . . . . Retrieved Components 9 | . 9 . . Parts Scanalyzed . | . . . . Part Schematics Acquired . | . . . . Parts Damaged . | . . . . Bothacking | -11 -10 -10 -10 ------------ Run | Yrd Mat Min Sub Used RIF Installer . | . . . . Robots Hacked . | . . . . Non-combat . | . . . . Combat . | . . . . Robot Hacks Applied . | . . . . Relay Couplers Released . | . . . . Fabnet Peak Effective % . | . . . . Robots Rewired . | . . . . Allies Hacked . | . . . . Hacks Repelled . | . . . . Allies | -11 -10 -10 -10 -------- Run | Yrd Mat Min Sub Total Allies 1 | . 1 . . Largest Group 1 | . 1 1 1 Highest-Rated Group 10 | . 10 10 9 Highest-Rated Ally 10 | . 10 10 9 Total Orders 5 | . . 4 1 STAY 3 | . . 2 1 FOLLOW 2 | . . 2 . Ally Attacks . | . . . . Total Damage . | . . . . Kills . | . . . . Allies Corrupted . | . . . . Allies Melted . | . . . . Intel | -11 -10 -10 -10 ------- Run | Yrd Mat Min Sub Robot Analysis Total . | . . . . Derelict Logs Recovered 2 | . . 1 1 Drone Launches . | . . . . Drone Recoveries . | . . . . Exploration | -11 -10 -10 -10 ------------- Run | Yrd Mat Min Sub Turns Passed 4666 | . 2792 1184 690 Spaces Moved 1832 | 1 903 676 252 Core 27 | . . . 27 Treads 1726 | . 903 676 147 Legs 1 | 1 . . . Wheels . | . . . . Hover . | . . . . Flight 78 | . . . 78 Fastest Speed 120 | 120 160 160 160 Average Speed 169 | 120 160 160 232 Slowest Speed 650 | 120 160 160 650 Overloaded Moves . | . . . . Propulsion Burnouts . | . . . . Robots Hopped . | . . . . Cave-ins Triggered . | . . . . Exploration Rate (%) 51 | 1 90 100 16 Regions Visited 3 Branch Regions 2 Pre-discovered Areas 2 | . 2 . . Known Exits Taken . | . . . . Unknown Exits Taken 3 | 1 1 1 . Scrap Searched 1 | . . 1 . Spaces Dug . | . . . . Terrain Destroyed . | . . . . Melee . | . . . . Projectile . | . . . . AOE . | . . . . Terrain Rammed . | . . . . Walls Destroyed . | . . . . Machines Disabled . | . . . . Actions | -11 -10 -10 -10 --------- Run | Yrd Mat Min Sub Total 3212 | . 2159 735 318 Wait 1194 | . 1131 28 35 Move 1829 | . 902 675 252 Hop . | . . . . Pick Up 32 | . 27 1 4 Fast Attach 5 | . 4 1 . Attach 10 | . 4 2 4 Detach 2 | . 2 . . Swap 10 | . 6 2 2 Drop 25 | . 23 . 2 Fire 102 | . 58 25 19 Melee . | . . . . Ram . | . . . . Kick . | . . . . Crush 3 | . 2 1 . Escape Stasis . | . . . . Rewire . | . . . . Trap . | . . . . Miscellaneous . | . . . . Route ------- -11/Scrapyard -10/Materials (discovered 5 exits: [*Mat x3] / [*Min x2]) -10/Mines (discovered 3 exits: [*Mat x2] / [*Sub]) -10/Subcaves History --------- Turn | Location | Event 1 | -11/Scrapyard | Discovered new exit (range 0) 1 | -11/Scrapyard | Entered Materials 253 | -10/Materials | Discovered new exit (range 8) 308 | -10/Materials | Build established: Mutant 578 | -10/Materials | Discovered new exit (range 6) 962 | -10/Materials | Discovered new exit (range 15) 1187 | -10/Materials | Discovered new exit (range 10) 2608 | -10/Materials | Discovered new exit (range 15) 2755 | -10/Materials | Repaired Spread Laser 2793 | -10/Materials | Entered Mines 2793 | -10/Mines | Accompanied by 1 ally 2848 | -10/Mines | Learned Materials stockpile data 2850 | -10/Mines | Received a Rocket Launcher from a helpful Derelict 3223 | -10/Mines | Core integrity fell below 50% 3461 | -10/Mines | Discovered new exit (range 6) 3656 | -10/Mines | Discovered new exit (range 6) 3967 | -10/Mines | Discovered new exit (range 6) 3977 | -10/Mines | Entered Subcaves 3977 | -10/Subcaves | Accompanied by 1 ally 4267 | -10/Subcaves | Lost 3 parts (2n1u) 4522 | -10/Subcaves | Learned 2 Materials zone layouts 4526 | -10/Subcaves | Shifting Twisted Machinery released Sub. Beam Cannon 4526 | -10/Subcaves | Shifting Twisted Machinery released Sub. Optics 4582 | -10/Subcaves | Shifting Twisted Machinery released Sub. Laser 4615 | -10/Subcaves | Core integrity fell below 20% 4667 | -10/Subcaves | Destroyed by S-10 Pest with Light Assault Rifle Last Messages --------------- Data stored: Materials zone layouts (x2). Sub. Beam Cannon falls loose from the Twisted Machinery. Sub. Optics falls loose from the Twisted Machinery. 04535_ Acquired Sub. Optics. Sub. Laser falls loose from the Twisted Machinery. 04598_ Acquired Sub. Laser. 04602_ Dropped Sub. Laser. 04602_ Acquired Sub. Laser. 04603_ Dropped Sub. Laser. 04616_ S-10 Pest springs to life. 04621_ S-10 Pest destroyed. 04625_ Lgt. Nuclear Core destroyed. 04627_ S-10 Pest destroyed. 04627_ Switching to secondary target: S-10 Pest. 04633_ S-10 Pest destroyed. 04637_ Flight Unit fries itself beyond repair. 04637_ Acquired 8 matter. 04640_ Lgt. Ion Engine fries itself beyond repair. 04644_ Acquired 7 matter. 04652_ Acquired 3 matter. Map ----- +----------------------------------------------------+ | ?????????????????????????????????????????????????? | | ?????????????????????????????????????????????????? | | ?????????????????????????????????????????????????? | | ?????????????????????????????????????????????????? | | ?????????????????????????????????????????????????? | | ?????????????????????????????????????????????????? | | ?????????????????????????????????????????????????? | | ?????????????????????????????????????????????????? | | ?????????????????????????????????????????????????? | | ?????????????????????????????????????????????????? | | ?????????????????????????????????????????????????? | | ?????????????????????????????????????????????????? | | ?????????????????????????????????????????????????? | | ?????????????????????????????????????????????????? | | ?????????????????????????????????????????????????? | | ?????????????????????????????????????????????????? | | ?????????????????????????????????????????????????? | | ?????????????????????????????????????????????????? | | ??????????????????????????????##?????????????????? | | ??????#####????????????????### ##### # ?????????? | | ?????## #???????????????? #?????????? | | ?????# ##??????????????## ????????????? | | ?????# ]"##?????????????## #???????????????? | | ?????# """#?? ??????##### ##???????????????? | | ?????## ""#?? ??#### ## ##??????????????? | | ??????# ""##" "## "" @ #??????????????? | | ??????# " ## ""###" ????????? | | ??????## ###"##" [ # # ## ????????? | | ???????# ##" " ##### ss #???#??????????? | | ???????# # """" ##???##### ###??????????????? | | ??????## ## """ #????????? "??????????????? | | ??????# ### #?###?????? #?????????????? | | ??????# ## ##### #????? #?????????????? | | ??????# #### #??# #?????? "#?????????????? | | ??????# #?# %### #??????" "#?????????????? | | ??????# ###% #???????"""#?????????????? | | ??????## #??? #???????????????????????? | | ??????# ## #???????????????????????? | | ??????# #???????????????????????? | | ??????# #????????????????????????? | | ??????# ### ###????????????????????????? | | ??????# ######??????????????????????????? | | ??????## #???????????????????????????? | | ???????# ##???????????????????????????? | | ???????# #####????????????????????????????? | | ???????### ###????????????????????????????????? | | ?????????# ##??????????????????????????????????? | | ?????????# #???????????????????????????????????? | | ?????????# #????###????????????????????????????? | | ?????????## #?#### ##???????????????????????????? | +----------------------------------------------------+ Best States ------------- Heat Dissipation 39 Energy Generation 15 Energy Capacity 250 Matter Stores 300 Matter Capacity 300 Sight Range 16 Terrain Scan Density 10 Armor Coverage 225 Evasion (%) 40 Recoil Reduction 2 Item Schematics ----------------- None Robot Schematics ------------------ None Fabricated ------------ Nothing Alien Tech Used ----------------- None Achievements -------------- None Challenges ------------ None Game ------ Seed SmartbombTimingNullifier Manual? 0 Play Time 00:20:26 Cumulative 117.8 hours Start 2024.11.19 @ 12:52:54 End 2024.11.19 @ 13:12:35 Sessions 1 Manual Loads 0 Difficulty Rogue Special Mode None Game No. 219 Rogue 219 Adventurer 0 Explorer 0 Win Type - Total 0 Types 0/0/0/0/0/0/0/0/0 Lore% 42 Gallery% 40 Achievement% 35 Wizard Run 0 Options --------- Layout 0 ASCII 0 Keyboard 0 Movement Mouse Keybinds 0 Fullscreen 1 Font 24/Smallcaps Map View 91x25 Zoom Use 71% Tactical HUD 1 Map Filters NONE Filters NONE Steam 1 RUN: 20e1fd47-39dd-4f39-90f0-0ef6b8968095